fUSD/lending_fUSD_20250611
["ID","MTS","AMOUNT","RATE_DAILY","PERIOD"]
[365433730,1749669040529,-490.0,0.00019178,2]
[365433731,1749669040538,-890.94,0.00019178,2]
[365433732,1749669040548,-490.0,0.00019178,2]
[365433733,1749669040557,-490.0,0.00019178,2]
[365433734,1749669040566,-518.56,0.00019178,2]
[365433735,1749669040575,-742.32,0.00019178,2]
[365433736,1749669040584,-490.0,0.00019178,2]
[365433737,1749669040594,-556.89,0.00019178,2]
[365433738,1749669040602,-541.8,0.00019178,2]
[365433739,1749669040614,-490.0,0.00019178,2]
[365433740,1749669040624,-490.0,0.00019178,2]
[365433741,1749669040633,-433.70734375,0.00019178,2]
[365433742,1749669040642,-490.0,0.00019178,2]
[365433743,1749669040651,-490.0,0.00019178,2]
[365433744,1749669040660,-490.0,0.00019178,2]
[365433745,1749669040669,-490.0,0.00019178,2]
[365433746,1749669040679,-552.41,0.00019178,2]
[365433747,1749669040687,-490.0,0.00019178,2]
[365433748,1749669040696,-490.0,0.00019178,2]
[365433749,1749669040705,-470.0,0.00019178,2]
[365433750,1749669040714,-370.0,0.00019178,2]
[365433751,1749669040723,-490.0,0.00019178,2]
[365433752,1749669040732,-363.64340497,0.00019178,2]
[365433753,1749669040741,-513.68,0.00019178,2]
[365433754,1749669040750,-4998.63,0.00019178,2]
[365433755,1749669040759,-490.0,0.00019178,2]
[365433756,1749669040768,-490.0,0.00019178,2]
[365433757,1749669040777,-490.0,0.00019178,2]
[365433758,1749669040786,-633.95,0.00019178,2]
[365433759,1749669040798,-548.95,0.00019178,2]
[365433760,1749669040807,-490.0,0.00019178,2]
[365433761,1749669040816,-535.03,0.00019178,2]
[365433762,1749669040826,-490.0,0.00019178,2]
[365433763,1749669040836,-490.0,0.00019178,2]
[365433764,1749669040845,-490.0,0.00019178,2]
[365433765,1749669040855,-547.37,0.00019178,2]
[365433766,1749669040864,-490.0,0.00019178,2]
[365433767,1749669040873,-480.0,0.00019178,2]
[365433768,1749669040882,-832.14,0.00019178,2]
[365433769,1749669040891,-764.0,0.00019178,2]
[365433770,1749669040900,-438.12701483,0.00019178,2]
[365433771,1749669040909,-490.0,0.00019178,2]
[365433772,1749669040918,-501.01,0.00019178,2]
[365433773,1749669040927,-490.0,0.00019178,2]
[365433774,1749669040937,-1686.51,0.00019178,2]
[365433775,1749669040946,-490.0,0.00019178,2]
[365433776,1749669040955,-490.0,0.00019178,2]
[365433777,1749669040964,-490.0,0.00019178,2]
[365433778,1749669040973,-490.0,0.00019178,2]
[365433779,1749669040982,-490.0,0.00019178,2]
[365433780,1749669040992,-859.55,0.00019178,2]
[365433781,1749669041001,-495.42,0.00019178,2]
[365433782,1749669041012,-490.0,0.00019178,2]
[365433783,1749669041021,-490.0,0.00019178,2]
[365433784,1749669041030,-490.0,0.00019178,2]
[365433785,1749669041039,-480.0,0.00019178,2]
[365433786,1749669041048,-490.0,0.00019178,2]
[365433787,1749669041058,-490.0,0.00019178,2]
[365433788,1749669041067,-947.97,0.00019178,2]
[365433789,1749669041075,-490.0,0.00019178,2]
[365433790,1749669041084,-490.0,0.00019178,2]
[365433791,1749669041093,-560.2,0.00019178,2]
[365433792,1749669041102,-490.0,0.00019178,2]
[365433793,1749669041113,-490.0,0.00019178,2]
[365433794,1749669041124,-490.0,0.00019178,2]
[365433795,1749669041136,-480.0,0.00019178,2]
[365433796,1749669041146,-537.76,0.00019178,2]
[365433797,1749669041155,-490.0,0.00019178,2]
[365433798,1749669041164,-490.0,0.00019178,2]
[365433799,1749669041173,-665.79,0.00019178,2]
[365433800,1749669041183,-490.0,0.00019178,2]
[365433801,1749669041193,-470.0,0.00019178,2]
[365433802,1749669041202,-1310.3,0.00019178,2]
[365433803,1749669041211,-490.0,0.00019178,2]
[365433804,1749669041220,-470.0,0.00019178,2]
[365433805,1749669041229,-321.32,0.00019178,2]
[365433806,1749669041238,-480.0,0.00019178,2]
[365433807,1749669041247,-490.0,0.00019178,2]
[365433808,1749669041256,-490.0,0.00019178,2]
[365433809,1749669041266,-490.38,0.00019178,2]
[365433810,1749669041275,-490.0,0.00019178,2]
[365433811,1749669041285,-635.37,0.00019178,2]
[365433812,1749669041294,-490.0,0.00019178,2]
[365433813,1749669041304,-490.0,0.00019178,2]
[365433814,1749669041313,-490.0,0.00019178,2]
[365433815,1749669041323,-528.6,0.00019178,2]
[365433816,1749669041332,-490.0,0.00019178,2]
[365433817,1749669041341,-214.75988668,0.00019178,2]
[365433818,1749669041351,-1292.65,0.00019178,2]
[365433819,1749669041360,-895.04,0.00019178,2]
[365433820,1749669041369,-490.0,0.00019178,2]
[365433821,1749669041378,-173.58,0.00019178,2]
[365433822,1749669041391,-3109.49,0.00019178,2]
[365433823,1749669041405,-508.04,0.00019178,2]
[365433824,1749669041414,-490.0,0.00019178,2]
[365433825,1749669041423,-735.36,0.00019178,2]
[365433826,1749669041435,-560.36,0.00019178,2]
[365433827,1749669041444,-490.0,0.00019178,2]
[365433828,1749669041454,-490.0,0.00019178,2]
[365433829,1749669041463,-1170.13,0.00019178,2]
[365433830,1749669041472,-490.0,0.00019178,2]
[365433831,1749669041481,-1733.64,0.00019178,2]
[365433832,1749669041491,-490.0,0.00019178,2]
[365433833,1749669041500,-1786.32,0.00019178,2]
[365433834,1749669041509,-186.87,0.00019178,2]
[365433835,1749669041518,-490.0,0.00019178,2]
[365433836,1749669041527,-1906.44,0.00019178,2]
[365433837,1749669041536,-490.0,0.00019178,2]
[365433838,1749669041545,-490.0,0.00019178,2]
[365433839,1749669041554,-490.0,0.00019178,2]
[365433840,1749669041563,-490.0,0.00019178,2]
[365433841,1749669041572,-1000.0,0.00019178,2]
[365433842,1749669041581,-325.79,0.00019178,2]
[365433843,1749669041590,-490.0,0.00019178,2]
[365433844,1749669041599,-490.0,0.00019178,2]
[365433845,1749669041608,-490.0,0.00019178,2]
[365433846,1749669041617,-490.0,0.00019178,2]
[365433847,1749669041627,-490.0,0.00019178,2]
[365433848,1749669041635,-490.0,0.00019178,2]
[365433849,1749669041645,-1909.88,0.00019178,2]
[365433850,1749669041654,-490.0,0.00019178,2]
[365433851,1749669041664,-490.0,0.00019178,2]
[365433852,1749669041686,-490.0,0.00019178,2]
[365433853,1749669041695,-490.0,0.00019178,2]
[365433854,1749669041704,-490.0,0.00019178,2]
[365433855,1749669041714,-490.0,0.00019178,2]
[365433856,1749669041723,-490.0,0.00019178,2]
[365433857,1749669041732,-490.0,0.00019178,2]
[365433858,1749669041742,-1094.92,0.00019178,2]
[365433859,1749669041751,-548.88,0.00019178,2]
[365433860,1749669041759,-3910.1,0.00019178,2]
[365433861,1749669041769,-490.0,0.00019178,2]
[365433862,1749669041778,-490.0,0.00019178,2]
[365433863,1749669041787,-686.65,0.00019178,2]
[365433864,1749669041796,-626.06,0.00019178,2]
[365433865,1749669041804,-490.0,0.00019178,2]
[365433866,1749669041813,-3193.85,0.00019178,2]
[365433867,1749669041823,-1764.53,0.00019178,2]
[365433868,1749669041831,-490.0,0.00019178,2]
[365433869,1749669041840,-531.16,0.00019178,2]
[365433870,1749669041849,-490.0,0.00019178,2]
[365433871,1749669041858,-490.0,0.00019178,2]
[365433872,1749669041867,-490.0,0.00019178,2]
[365433873,1749669041877,-524.54,0.00019178,2]
[365433874,1749669041886,-564.34,0.00019178,2]
[365433875,1749669041895,-490.0,0.00019178,2]
[365433876,1749669041904,-490.0,0.00019178,2]
[365433877,1749669041913,-490.0,0.00019178,2]
[365433878,1749669041922,-490.0,0.00019178,2]
[365433879,1749669041931,-490.0,0.00019178,2]
[365433880,1749669041940,-490.0,0.00019178,2]
[365433881,1749669041952,-490.0,0.00019178,2]
[365433882,1749669041961,-490.0,0.00019178,2]
[365433883,1749669041970,-490.0,0.00019178,2]
[365433884,1749669041979,-513.38,0.00019178,2]
[365433885,1749669041988,-490.0,0.00019178,2]
[365433886,1749669041998,-1707.93,0.00019178,2]
[365433887,1749669042007,-656.71,0.00019178,2]
[365433888,1749669042016,-585.54,0.00019178,2]
[365433889,1749669042025,-490.0,0.00019178,2]
[365433890,1749669042034,-480.0,0.00019178,2]
[365433891,1749669042043,-490.0,0.00019178,2]
[365433892,1749669042052,-470.0,0.00019178,2]
[365433893,1749669042061,-490.0,0.00019178,2]
[365433894,1749669042070,-1259.13,0.00019178,2]
[365433895,1749669042079,-490.0,0.00019178,2]
[365433896,1749669042089,-184.7294967,0.00019178,2]
[365433897,1749669042098,-784.1,0.00019178,2]
[365433898,1749669042107,-490.0,0.00019178,2]
[365433899,1749669042121,-5274.13,0.00019178,2]
[365433900,1749669042130,-490.0,0.00019178,2]
[365433901,1749669042138,-1163.59,0.00019178,2]
[365433902,1749669042148,-163.35,0.00019178,2]
[365433903,1749669042158,-163.35,0.00019178,2]
[365433905,1749669042167,-204.46022988,0.00019186,2]
[365433906,1749669042176,-2434.74389024,0.00019199,2]
[365433907,1749669042188,-2100.0,0.000192,7]
[365433909,1749669042197,-500.0,0.00019201,7]
[365433911,1749669042206,-637.23,0.00019201,7]
[365433912,1749669042216,-500.0,0.00019201,7]
[365433914,1749669042225,-500.0,0.00019201,7]
[365433916,1749669042234,-500.0,0.00019201,7]
[365433918,1749669042243,-500.0,0.00019201,7]
[365433920,1749669042253,-500.0,0.00019201,7]
[365433922,1749669042262,-500.0,0.00019201,7]
[365433924,1749669042272,-500.0,0.00019201,7]
[365433926,1749669042281,-162.07,0.00019201,7]
[365433928,1749669042291,-204.46022988,0.00019221,2]
[365433930,1749669042302,-1004.0403,0.00019242,2]
[365433932,1749669042311,-502.44793946,0.00019242,2]
[365433933,1749669042322,-183.21481543,0.00019242,2]
[365433934,1749669042331,-1815.18920426,0.00019254,2]
[365433935,1749669042341,-204.46022988,0.00019257,2]
[365433936,1749669042351,-508.48,0.0001926,2]
[365433937,1749669042368,-692.47,0.0001926,2]
[365433938,1749669042382,-2064.78133423,0.00019261,2]
[365433939,1749669042392,-204.46022988,0.00019293,2]
[365433940,1749669042401,-1000.0,0.000193,2]
[365433941,1749669042411,-2800.0,0.000193,7]
[365433942,1749669042420,-502.44793946,0.00019315,2]
[365433943,1749669042430,-204.46022988,0.00019329,2]
[365433944,1749669042440,-490.0,0.00019342,2]
[365433945,1749669042449,-612.76225239,0.00019342,2]
[365433946,1749669042459,-490.0,0.00019342,2]
[365433947,1749669042468,-490.0,0.00019342,2]
[365433948,1749669042477,-490.0,0.00019342,2]
[365433949,1749669042487,-490.0,0.00019342,2]
[365433950,1749669042496,-490.0,0.00019342,2]
[365433951,1749669042505,-490.0,0.00019342,2]
[365433953,1749669042515,-490.0,0.00019342,2]
[365433954,1749669042524,-490.0,0.00019342,2]
[365433955,1749669042533,-490.0,0.00019342,2]
[365433956,1749669042543,-490.0,0.00019342,2]
[365433957,1749669042552,-490.0,0.00019342,2]
[365433958,1749669042561,-490.0,0.00019342,2]
[365433959,1749669042570,-490.0,0.00019342,2]
[365433960,1749669042580,-490.0,0.00019342,2]
[365433961,1749669042588,-490.0,0.00019342,2]
[365433962,1749669042597,-490.0,0.00019342,2]
[365433963,1749669042606,-490.0,0.00019342,2]
[365433964,1749669042615,-490.0,0.00019342,2]
[365433965,1749669042624,-490.0,0.00019342,2]
[365433966,1749669042634,-505.14,0.00019342,2]
[365433967,1749669042644,-490.0,0.00019342,2]
[365433968,1749669042653,-490.0,0.00019342,2]
[365433969,1749669042662,-490.0,0.00019342,2]
[365433970,1749669042671,-490.0,0.00019342,2]
[365433971,1749669042679,-490.0,0.00019342,2]
[365433972,1749669042690,-490.0,0.00019342,2]
[365433973,1749669042700,-673.83,0.00019342,2]
[365433974,1749669042709,-490.0,0.00019342,2]
[365433975,1749669042718,-490.0,0.00019342,2]
[365433976,1749669042727,-490.0,0.00019342,2]
[365433977,1749669042736,-628.64,0.00019342,2]
[365433978,1749669042746,-490.0,0.00019342,2]
[365433979,1749669042755,-490.0,0.00019342,2]
[365433980,1749669042764,-490.0,0.00019342,2]
[365433981,1749669042773,-490.0,0.00019342,2]
[365433982,1749669042782,-490.0,0.00019342,2]
[365433983,1749669042792,-490.0,0.00019342,2]
[365433984,1749669042801,-490.0,0.00019342,2]
[365433985,1749669042810,-490.0,0.00019342,2]
[365433986,1749669042819,-490.0,0.00019342,2]
[365433987,1749669042828,-490.0,0.00019342,2]
[365433988,1749669042838,-490.0,0.00019342,2]
[365433989,1749669042847,-490.0,0.00019342,2]
[365433990,1749669042856,-490.0,0.00019342,2]
[365433991,1749669042865,-490.0,0.00019342,2]
[365433992,1749669042875,-490.0,0.00019342,2]
[365433993,1749669042884,-490.0,0.00019342,2]
[365433994,1749669042893,-490.0,0.00019342,2]
[365433995,1749669042902,-490.0,0.00019342,2]
[365433996,1749669042911,-490.0,0.00019342,2]
[365433997,1749669042920,-490.0,0.00019342,2]
[365433998,1749669042929,-490.0,0.00019342,2]
[365433999,1749669042941,-490.0,0.00019342,2]
[365434000,1749669042950,-490.0,0.00019342,2]
[365434001,1749669042959,-465.71570662,0.00019342,2]
[365434002,1749669042968,-267.49371581,0.00019342,2]
[365434003,1749669042978,-490.0,0.00019342,2]
[365434004,1749669042987,-490.0,0.00019342,2]
[365434005,1749669042996,-594.68,0.00019342,2]
[365434006,1749669043006,-490.0,0.00019342,2]
[365434007,1749669043014,-490.0,0.00019342,2]
[365434008,1749669043024,-480.0,0.00019342,2]
[365434009,1749669043033,-595.36,0.00019342,2]
[365434010,1749669043042,-539.81,0.00019342,2]
[365434011,1749669043051,-490.0,0.00019342,2]
[365434012,1749669043061,-490.0,0.00019342,2]
[365434013,1749669043070,-490.0,0.00019342,2]
[365434014,1749669043079,-490.0,0.00019342,2]
[365434015,1749669043088,-480.0,0.00019342,2]
[365434016,1749669043098,-490.0,0.00019342,2]
[365434017,1749669043108,-490.0,0.00019342,2]
[365434018,1749669043121,-490.0,0.00019342,2]
[365434019,1749669043131,-2317.42,0.00019342,2]
[365434020,1749669043141,-490.0,0.00019342,2]
[365434021,1749669043150,-2805.49,0.00019342,2]
[365434022,1749669043161,-490.0,0.00019342,2]
[365434023,1749669043170,-890.94,0.00019342,2]
[365434024,1749669043181,-490.0,0.00019342,2]
[365434025,1749669043192,-490.0,0.00019342,2]
[365434026,1749669043202,-518.56,0.00019342,2]
[365434027,1749669043212,-742.32,0.00019342,2]
[365434028,1749669043221,-556.89,0.00019342,2]
[365434029,1749669043231,-541.8,0.00019342,2]
[365434030,1749669043241,-490.0,0.00019342,2]
[365434031,1749669043251,-490.0,0.00019342,2]
[365434032,1749669043261,-490.0,0.00019342,2]
[365434033,1749669043271,-490.0,0.00019342,2]
[365434034,1749669043282,-490.0,0.00019342,2]
[365434035,1749669043292,-552.41,0.00019342,2]
[365434036,1749669043302,-490.0,0.00019342,2]
[365434037,1749669043312,-490.0,0.00019342,2]
[365434038,1749669043322,-513.68,0.00019342,2]
[365434039,1749669043332,-4998.63,0.00019342,2]
[365434040,1749669043341,-490.0,0.00019342,2]
[365434041,1749669043351,-490.0,0.00019342,2]
[365434042,1749669043361,-633.95,0.00019342,2]
[365434043,1749669043372,-548.95,0.00019342,2]
[365434044,1749669043382,-490.0,0.00019342,2]
[365434045,1749669043392,-535.03,0.00019342,2]
[365434046,1749669043403,-490.0,0.00019342,2]
[365434047,1749669043413,-490.0,0.00019342,2]
[365434048,1749669043424,-547.37,0.00019342,2]
[365434049,1749669043436,-832.14,0.00019342,2]
[365434050,1749669043446,-764.0,0.00019342,2]
[365434051,1749669043456,-501.01,0.00019342,2]
[365434052,1749669043467,-490.0,0.00019342,2]
[365434053,1749669043477,-490.0,0.00019342,2]
[365434054,1749669043487,-1686.51,0.00019342,2]
[365434055,1749669043497,-490.0,0.00019342,2]
[365434056,1749669043507,-490.0,0.00019342,2]
[365434057,1749669043517,-490.0,0.00019342,2]
[365434058,1749669043527,-490.0,0.00019342,2]
[365434059,1749669043537,-859.55,0.00019342,2]
[365434060,1749669043547,-495.42,0.00019342,2]
[365434061,1749669043558,-490.0,0.00019342,2]
[365434062,1749669043567,-490.0,0.00019342,2]
[365434063,1749669043577,-490.0,0.00019342,2]
[365434064,1749669043587,-490.0,0.00019342,2]
[365434065,1749669043597,-490.0,0.00019342,2]
[365434066,1749669043606,-947.97,0.00019342,2]
[365434067,1749669043616,-490.0,0.00019342,2]
[365434068,1749669043626,-490.0,0.00019342,2]
[365434069,1749669043636,-560.2,0.00019342,2]
[365434070,1749669043646,-490.0,0.00019342,2]
[365434071,1749669043655,-490.0,0.00019342,2]
[365434072,1749669043665,-537.76,0.00019342,2]
[365434073,1749669043675,-490.0,0.00019342,2]
[365434074,1749669043687,-207.03,0.00019342,2]
[365434075,1749669043697,-665.79,0.00019342,2]
[365434076,1749669043707,-490.0,0.00019342,2]
[365434077,1749669043716,-1310.3,0.00019342,2]
[365434078,1749669043726,-490.0,0.00019342,2]
[365434079,1749669043735,-490.0,0.00019342,2]
[365434080,1749669043745,-490.0,0.00019342,2]
[365434081,1749669043755,-490.0,0.00019342,2]
[365434082,1749669043764,-635.37,0.00019342,2]
[365434083,1749669043774,-490.0,0.00019342,2]
[365434084,1749669043784,-490.0,0.00019342,2]
[365434085,1749669043794,-203.39830104,0.00019342,2]
[365434086,1749669043804,-528.6,0.00019342,2]
[365434087,1749669043814,-490.0,0.00019342,2]
[365434088,1749669043823,-1292.65,0.00019342,2]
[365434089,1749669043833,-895.04,0.00019342,2]
[365434090,1749669043842,-490.0,0.00019342,2]
[365434091,1749669043853,-3109.49,0.00019342,2]
[365434092,1749669043862,-508.04,0.00019342,2]
[365434093,1749669043873,-490.0,0.00019342,2]
[365434094,1749669043882,-735.36,0.00019342,2]
[365434095,1749669043891,-560.36,0.00019342,2]
[365434096,1749669043901,-490.0,0.00019342,2]
[365434097,1749669043911,-490.0,0.00019342,2]
[365434098,1749669043920,-1170.13,0.00019342,2]
[365434099,1749669043933,-1733.64,0.00019342,2]
[365434100,1749669043943,-490.0,0.00019342,2]
[365434101,1749669043954,-1786.32,0.00019342,2]
[365434102,1749669043964,-490.0,0.00019342,2]
[365434103,1749669043974,-1906.44,0.00019342,2]
[365434104,1749669043984,-490.0,0.00019342,2]
[365434105,1749669043994,-490.0,0.00019342,2]
[365434106,1749669044004,-290.69446014,0.00019342,2]
[365434107,1749669044682,-199.30553986,0.00019342,2]
[365434108,1749669044692,-490.0,0.00019342,2]
[365434109,1749669044702,-718.24446014,0.00019342,2]
[365434114,1749669138082,7000.0,0.00017,2]
[365434116,1749669350085,1272.65,0.00016479,2]
[365434127,1749669386743,405.88,0.00013699,2]
[365434138,1749669971658,204.0,0.00016376,2]
[365434139,1749670027382,-290.36,0.00017556,2]
[365434140,1749670027402,-1013.81005651,0.00017556,2]
[365434141,1749670050088,-926.28994349,0.00017556,2]
[365434142,1749670050110,-204.0,0.00017588,3]
[365434143,1749670050131,-1133.22,0.00017672,2]
[365434144,1749670050151,-150.0,0.00017679,7]
[365434145,1749670050171,-248.78,0.00017858,2]
[365434146,1749670050191,-666.0,0.00017883,2]
[365434147,1749670050219,-202.00259934,0.000179,2]
[365434148,1749670050239,-205.33,0.0001791,2]
[365434149,1749670050260,-2041.25172404,0.0001798,2]
[365434150,1749670050291,-202.00259924,0.00018005,2]
[365434151,1749670050312,-300.0,0.00018055,2]
[365434152,1749670050334,-156.41,0.00018056,2]
[365434153,1749670050355,-1200.0,0.00018056,2]
[365434154,1749670050377,-300.0,0.00018056,2]
[365434155,1749670050398,-240.42954782,0.00018057,2]
[365434156,1749670061831,500.0,0.00016365,2]
[365434162,1749670119216,7510.44667849,0.000151,2]
[365434164,1749670121942,202.0,0.00016376,2]
[365434172,1749670151693,202.0,0.00016376,2]
[365434211,1749670231520,-315.598938,0.00017636,2]
[365434213,1749670231577,-684.401062,0.00017636,2]
[365434214,1749670231587,-600.0,0.00017767,4]
[365434215,1749670231601,-1200.0,0.00017898,2]
[365434216,1749670231611,-550.0,0.00017898,2]
[365434217,1749670231621,-232.11196843,0.00017899,2]
[365434218,1749670231631,-500.0,0.00017899,2]
[365434219,1749670231641,-500.0,0.00017899,2]
[365434220,1749670231651,-500.0,0.00017899,2]
[365434221,1749670231662,-500.0,0.00017899,2]
[365434222,1749670231673,-500.0,0.00017899,2]
[365434223,1749670231683,-500.0,0.00017899,2]
[365434224,1749670231694,-572.66702837,0.00017899,2]
[365434225,1749670231705,-500.0,0.00017899,2]
[365434226,1749670231715,-531.80914509,0.00017899,2]
[365434227,1749670231729,-258.72497738,0.00017899,2]
[365434228,1749670231740,-500.0,0.00017899,2]
[365434229,1749670231750,-500.0,0.00017899,2]
[365434230,1749670231760,-500.0,0.00017899,2]
[365434231,1749670231771,-500.0,0.00017899,2]
[365434232,1749670231781,-500.0,0.00017899,2]
[365434233,1749670231791,-500.0,0.00017899,2]
[365434234,1749670231801,-26553.25442569,0.000179,2]
[365434235,1749670231814,-1221.88403092,0.000179,2]
[365434258,1749670237509,-2100.69529712,0.000179,2]
[365434263,1749670237565,-360.61830023,0.000179,2]
[365434265,1749670237577,-306.31828906,0.000179,2]
[365434267,1749670237587,-367.13739038,0.000179,2]
[365434274,1749670237727,-5398.35821105,0.000179,2]
[365434275,1749670237736,-65.19045218,0.00018057,2]
[365434276,1749670237747,-300.9,0.00018057,2]
[365434277,1749670237757,-302.91,0.00018057,2]
[365434278,1749670237766,-304.93,0.00018057,2]
[365434279,1749670237776,-302.18,0.00018057,2]
[365434280,1749670237785,-303.66,0.00018057,2]
[365434281,1749670237794,-303.24,0.00018057,2]
[365434282,1749670237804,-303.86,0.00018057,2]
[365434283,1749670237813,-304.95,0.00018057,2]
[365434284,1749670237823,-300.69,0.00018057,2]
[365434285,1749670237832,-303.25,0.00018057,2]
[365434286,1749670237842,-305.63,0.00018057,2]
[365434287,1749670237851,-490.95,0.00018058,2]
[365434288,1749670237861,-303.33,0.00018058,2]
[365434289,1749670237870,-509.42,0.00018058,2]
[365434290,1749670237879,-506.56,0.00018058,2]
[365434291,1749670237889,-503.37,0.00018058,2]
[365434292,1749670237898,-300.84,0.00018058,2]
[365434293,1749670237907,-490.68,0.00018058,2]
[365434294,1749670237916,-305.05,0.00018059,2]
[365434295,1749670237925,-250.0,0.00018059,2]
[365434296,1749670237935,-300.32,0.00018059,2]
[365434297,1749670237944,-303.41,0.00018059,2]
[365434298,1749670237955,-302.24,0.00018059,2]
[365434299,1749670237965,-499.8,0.00018059,2]
[365434300,1749670237974,-496.43,0.00018059,2]
[365434301,1749670237983,-301.39,0.00018059,2]
[365434302,1749670237993,-492.92,0.00018059,2]
[365434303,1749670238002,-436.63944217,0.00018059,2]
[365434304,1749670238014,-66.67055783,0.00018059,2]
[365434305,1749670238024,-244.51433517,0.00018059,2]
[365434306,1749670238035,-262.07566483,0.00018059,2]
[365434307,1749670238045,-300.36,0.00018059,2]
[365434308,1749670238054,-495.19,0.00018059,2]
[365434309,1749670238064,-300.93,0.00018059,2]
[365434310,1749670238074,-305.55,0.00018059,2]
[365434311,1749670238084,-251.31557363,0.00018061,2]
[365434312,1749670238096,-49.14442637,0.00018061,2]
[365434313,1749670238105,-300.15,0.00018061,2]
[365434314,1749670238115,-305.25,0.0001807,2]
[365434315,1749670238124,-303.78,0.0001807,2]
[365434316,1749670238134,-910.30155463,0.000181,2]
[365434317,1749670238145,-487.85138698,0.000181,2]
[365434318,1749670238155,-302.64,0.00018124,2]
[365434320,1749670238164,-304.11,0.00018125,2]
[365434322,1749670238174,-305.05,0.00018131,2]
[365434323,1749670238183,-302.6,0.00018163,2]
[365434324,1749670238192,-305.55,0.00018163,2]
[365434325,1749670238203,-960.87038216,0.00018183,2]
[365434327,1749670238215,-9585.70155951,0.00018183,2]
[365434328,1749670238226,-1057.6207184,0.00018183,2]
[365434329,1749670238241,-4174.84733993,0.00018183,2]
[365434330,1749670238250,-305.0,0.00018357,2]
[365434331,1749670238259,-150.0,0.00018652,2]
[365434332,1749670238268,-150.0,0.00018652,2]
[365434333,1749670238278,-300.0,0.000187,6]
[365434334,1749670238287,-150.0,0.000187,2]
[365434335,1749670238297,-1272.65,0.00018742,2]
[365434336,1749670238306,-204.0,0.000188,5]
[365434337,1749670238315,-700.0,0.000188,6]
[365434338,1749670238324,-207.4,0.00018869,2]
[365434339,1749670238333,-237.95526442,0.00018869,2]
[365434340,1749670238342,-151.0,0.00018869,2]
[365434341,1749670238351,-1000.0,0.000189,6]
[365434342,1749670238360,-202.00259924,0.000189,2]
[365434343,1749670238369,-166.73,0.00018948,2]
[365434344,1749670238377,-202.00259924,0.00018959,2]
[365434345,1749670238386,-1319.83993826,0.00018967,2]
[365434346,1749670238395,-300.0,0.0001899,2]
[365434347,1749670238405,-500.0,0.00018999,2]
[365434348,1749670238413,-229.78008194,0.00018999,2]
[365434349,1749670238422,-159.14644348,0.00018999,2]
[365434350,1749670238431,-250.0,0.00019,2]
[365434351,1749670238440,-1290.42430099,0.00019,2]
[365434352,1749670238452,-9483.61789441,0.00019,2]
[365434353,1749670238462,-1501.39523965,0.00019,2]
[365434354,1749670238473,-2061.40833321,0.00019,2]
[365434355,1749670238484,-399.2358624,0.00019,2]
[365434356,1749670238495,-426.28799994,0.00019,2]
[365434373,1749670239678,-260.537,0.00019,2]